bitfinex/quotes_SOLUSD_20241008
["timestamp","ask_amount","ask_price","bid_price","bid_amount"]
[1728368888487,1.74870185,143.0,142.93,17.61559]
[1728368888778,6.9945,142.97,142.93,24.61189]
[1728368889482,1.74870185,143.0,142.94,23.902374]
[1728368889674,6.9943,142.98,142.94,30.898274]
[1728368890575,6.9943,142.98,142.94,32.29718428]
[1728368891688,6.9943,142.98,142.94,30.898274]
[1728368895509,1.74870185,143.0,142.94,30.898274]
[1728368895510,1.74870185,143.0,142.94,23.902374]
[1728368895689,6.9945,142.97,142.94,23.902374]
[1728368896205,6.9941,142.98,142.94,23.902374]
[1728368897305,1.74862617,143.01,142.96,30.897274]
[1728368897501,6.9931,143.0,142.97,1.39868994]
[1728368897807,6.9931,143.0,142.96,30.897274]
[1728368901104,8.93470183,143.03,142.98,23.902374]
[1728368901280,6.9921,143.02,142.99,1.39848036]
[1728368901980,15.0283,143.04,142.99,1.39848036]
[1728368902185,15.0283,143.04,143.0,24.4752]
[1728368902380,22.0196,143.04,143.0,17.4824]
[1728368902588,6.9916,143.03,143.0,17.4824]
[1728368902992,6.9916,143.03,142.99,6.9933]
[1728368903193,8.73958966,143.03,142.99,6.9933]
[1728368903395,6.9921,143.02,142.98,23.902374]
[1728368904606,1.74798716,143.03,142.98,23.902374]
[1728368904811,6.9925,143.01,142.98,23.902374]
[1728368905518,6.9922,143.02,142.98,30.896274]
[1728368906811,1.74798716,143.03,142.98,23.902374]
[1728368907006,6.9926,143.01,142.98,23.902374]
[1728368909213,1.74798716,143.03,142.97,23.902374]
[1728368909392,6.9933,143.0,142.97,23.902374]
[1728368910328,6.9933,143.0,142.96,6.3899]
[1728368910522,6.994,142.98,142.94,24.4847]
[1728368910844,6.9936,142.99,142.94,24.4847]
[1728368911629,6.9933,143.0,142.96,6.9945]
[1728368912007,1.74831934,143.03,142.97,23.902374]
[1728368912214,16.77636594,143.04,142.98,0.12549]
[1728368912411,15.0283,143.04,143.0,6.9926]
[1728368912613,15.0283,143.04,143.01,1.39829401]
[1728368913016,6.9904,143.06,143.02,1.39829467]
[1728368914011,24.62533603,143.08,143.03,25.30048283]
[1728368914215,22.8777,143.08,143.03,23.902374]
[1728368914617,15.8885,143.08,143.03,23.902374]
[1728368914821,15.8885,143.08,143.05,6.9904]
[1728368915037,15.8885,143.08,143.06,1.39784181]
[1728368915416,6.989,143.09,143.06,1.39784181]
[1728368915622,6.989,143.09,143.04,24.59279]
[1728368915812,6.989,143.09,143.05,23.776884]
[1728368916220,1.74742717,143.1,143.05,23.776884]
[1728368916519,6.9891,143.08,143.04,24.59279]
[1728368920047,6.9886,143.09,143.05,23.902374]
[1728368922539,6.9886,143.09,143.06,1.39781685]
[1728368922754,6.9886,143.09,143.05,23.902374]
[1728368926257,6.9886,143.09,143.05,25.30019153]
[1728368926527,6.9886,143.09,143.06,1.39781688]
[1728368927038,6.9886,143.09,143.05,23.902374]
[1728368927341,6.9886,143.09,143.05,25.30019023]
[1728368928049,6.9882,143.1,143.06,1.39773075]
[1728368928242,6.9882,143.1,143.05,30.892474]
[1728368928828,17.89126344,143.11,143.05,23.902374]
[1728368929040,6.9887,143.09,143.05,30.892874]
[1728368930356,6.9881,143.1,143.06,6.99]
[1728368930556,6.9881,143.1,143.07,23.902374]
[1728368933037,1.74718777,143.12,143.07,23.902374]
[1728368933038,6.9872,143.12,143.08,8.38633147]
[1728368934560,6.9868,143.13,143.09,30.890774]
[1728368941179,8.73385372,143.12,143.08,17.4723]
[1728368941466,6.9872,143.12,143.08,17.4723]
[1728368941873,6.9867,143.13,143.09,1.39753232]
[1728368942366,1.74678418,143.13,143.08,24.4612]
[1728368942578,6.9873,143.12,143.09,23.902374]
[1728368943259,6.9882,143.1,143.05,17.4754]
[1728368943463,1.74678812,143.13,143.05,24.4658]
[1728368943464,6.9886,143.09,143.05,24.4658]
[1728368943872,6.9882,143.1,143.05,24.4658]
[1728368944983,6.9882,143.1,143.06,23.902374]
[1728368945560,6.9887,143.09,143.06,23.902374]
[1728368949986,21.74678812,143.13,143.05,17.4754]
[1728368950178,6.9892,143.08,143.05,17.4754]
[1728368953198,6.9901,143.06,143.02,17.4791]
[1728368953385,6.9907,143.05,143.02,17.4791]
[1728368953881,1.74728258,143.07,142.99,23.6232]
[1728368954083,6.9911,143.04,143.0,6.9929]
[1728368954281,1.74728258,143.07,142.99,24.4761]
[1728368954282,6.9917,143.03,142.99,24.4761]
[1728368954694,1.74786044,143.07,143.0,1.39828835]
[1728368954997,1.74758887,143.08,143.03,6.9914]
[1728368955197,8.73668887,143.08,143.04,1.39796831]
[1728368955406,15.3664,143.09,143.05,23.776884]
[1728368955578,6.9891,143.08,143.04,6.9909]
[1728368955895,6.9897,143.07,143.04,1.39789385]
[1728368958505,6.9891,143.08,143.04,8.38889385]
[1728368959476,15.3664,143.09,143.04,1.39789385]
[1728368959706,22.355,143.09,143.05,30.892774]
[1728368960299,15.3664,143.09,143.05,30.892774]
[1728368960502,15.3664,143.09,143.06,1.39780313]
[1728368960699,22.355,143.09,143.06,1.39780313]
[1728368961503,15.3664,143.09,143.06,8.38770313]
[1728368962601,6.9877,143.11,143.07,30.891774]
[1728368962799,7.99303643,143.12,143.08,1.39762914]
[1728368963001,6.9877,143.11,143.08,1.39762914]
[1728368963902,6.9877,143.11,143.07,48.365374]
[1728368964196,23.3758,143.13,143.08,8.3865356]
[1728368964380,23.3758,143.13,143.09,23.902374]
[1728368964582,23.3758,143.13,143.1,1.39743006]
[1728368964781,23.3758,143.13,143.09,23.902374]
[1728368965099,23.3758,143.13,143.1,1.39742351]
[1728368966106,23.3758,143.13,143.09,30.890874]
[1728368966281,23.3758,143.13,143.09,23.902374]
[1728368968209,23.3758,143.13,143.09,7.11389]
[1728368968513,16.3887,143.13,143.11,6.9872]
[1728368968894,16.3887,143.13,143.1,32.16212215]
[1728368969916,15.1662,143.17,143.12,23.776884]
[1728368970094,15.1662,143.17,143.13,0.12549]
[1728368970302,15.1662,143.17,143.14,23.776884]
[1728368970912,6.9858,143.15,143.12,20.0]
[1728368971122,8.73296735,143.14,143.1,0.12549]
[1728368971305,6.9865,143.14,143.1,7.11349]
[1728368972804,6.9865,143.14,143.09,50.890874]
[1728368973698,6.9865,143.14,143.1,6.988]
[1728368978328,6.9865,143.14,143.11,1.39730422]
[1728368978516,6.9857,143.15,143.09,43.902374]
[1728368978821,6.9857,143.15,143.11,6.9874]
[1728368980041,15.1662,143.17,143.1,17.4698]
[1728368980224,6.9852,143.16,143.12,6.987]
[1728368982223,6.9852,143.16,143.11,31.015364]
[1728368982919,6.9857,143.15,143.11,30.889874]
[1728368984226,8.73279464,143.14,143.1,17.4698]
[1728368984438,6.9862,143.14,143.1,17.4698]
[1728368984727,6.9862,143.14,143.1,24.4578]
[1728368986108,1.74663538,143.16,143.1,17.4698]
[1728368986342,6.987,143.13,143.1,23.902374]
[1728368986844,6.9862,143.14,143.1,7.11359]
[1728368987143,6.9858,143.15,143.11,32.16172865]
[1728368987346,6.9858,143.15,143.11,8.38484465]
[1728368987542,6.9858,143.15,143.11,6.9875]
[1728368987752,6.9853,143.16,143.12,6.9871]
[1728368988414,6.9853,143.16,143.11,6.9874]
[1728368989236,8.73177039,143.16,143.11,6.9874]
[1728368990341,6.9857,143.15,143.11,6.9874]
[1728368994237,1.74647039,143.16,143.1,0.25098]
[1728368994238,6.9865,143.14,143.1,0.25098]
[1728368994422,6.9865,143.14,143.11,23.776884]
[1728368997234,6.9858,143.15,143.11,23.776884]
[1728368997733,1.74647039,143.16,143.1,24.027864]
[1728368997931,15.1662,143.17,143.14,23.902374]
[1728368998142,15.1662,143.17,143.15,0.12549]
[1728368999033,15.1662,143.17,143.15,7.11109]
[1728368999519,25.30967975,143.2,143.16,6.9851]
[1728368999928,23.5636,143.2,143.17,1.39676129]
[1728369000331,16.5803,143.2,143.18,8.38054135]
[1728369000539,15.9061,143.24,143.19,23.902374]
[1728369000744,15.9061,143.24,143.21,6.9827]
[1728369001056,15.9061,143.24,143.22,6.9822]
[1728369001845,15.9061,143.24,143.22,0.12549]
[1728369002275,15.9061,143.24,143.22,7.10769]
[1728369002437,15.9061,143.24,143.23,23.776884]
[1728369002644,22.4928,143.27,143.23,23.776884]
[1728369005455,15.5129,143.27,143.24,8.37713997]
[1728369005668,15.5129,143.27,143.22,23.902374]
[1728369005669,15.5129,143.27,143.23,0.12549]
[1728369005956,15.5129,143.27,143.24,23.902374]
[1728369006154,6.9784,143.3,143.26,0.12549]
[1728369006452,22.0078,143.3,143.26,0.12549]
[1728369007954,17.3927966,143.35,143.28,23.776884]
[1728369008870,17.3927966,143.35,143.27,43.902374]
[1728369009050,1.74444008,143.33,143.27,23.776884]
[1728369009244,1.74444008,143.33,143.26,23.776884]
[1728369009567,6.9787,143.3,143.26,23.776884]
[1728369009949,1.74444008,143.33,143.26,23.776884]
[1728369010153,6.9794,143.28,143.23,24.4357]
[1728369010468,23.343,143.29,143.24,6.9811]
[1728369011440,23.343,143.29,143.25,23.902374]
[1728369015972,23.343,143.29,143.25,0.12549]
[1728369016169,16.3642,143.29,143.26,23.776884]
[1728369016881,17.04795911,143.33,143.28,23.776884]
[1728369017077,24.02515911,143.33,143.28,30.756184]
[1728369017265,22.2801,143.33,143.29,0.12549]
[1728369018492,22.2801,143.33,143.3,23.776884]
[1728369019876,15.3032,143.33,143.27,17.4487]
[1728369020185,6.9779,143.31,143.27,17.4487]
[1728369021264,6.9779,143.31,143.27,24.4283]
[1728369021467,6.9779,143.31,143.28,23.902374]
[1728369021761,15.3032,143.33,143.28,23.902374]
[1728369021964,0.8182337,143.34,143.33,50.0]
[1728369022180,0.8182337,143.34,143.33,51.004764]
[1728369023271,0.8182337,143.34,143.33,115.54226914]
[1728369024494,0.8182337,143.34,143.33,101.004764]
[1728369025780,0.8182337,143.34,143.33,102.39940919]
[1728369026083,0.8182337,143.34,143.33,101.004764]
[1728369030086,0.8182337,143.34,143.33,102.39951642]
[1728369031009,0.8182337,143.34,143.33,101.004764]
[1728369033671,0.8182337,143.34,143.33,102.39947841]
[1728369033875,0.8182337,143.34,143.33,101.004764]
[1728369034598,0.8182337,143.34,143.33,102.39949062]
[1728369035527,0.8182337,143.34,143.33,101.004764]
[1728369035702,0.8182337,143.34,143.33,102.39949109]
[1728369036497,0.8182337,143.34,143.33,101.004764]
[1728369038089,0.8182337,143.34,143.33,102.39961887]
[1728369038924,0.8182337,143.34,143.33,101.004764]
[1728369039715,0.8182337,143.34,143.33,102.3996183]
[1728369041189,0.8182337,143.34,143.33,102.39962115]
[1728369042005,0.8182337,143.34,143.33,101.004764]
[1728369042325,0.8182337,143.34,143.33,7.10239]
[1728369042492,0.8182337,143.34,143.33,0.12549]
[1728369042988,0.8182337,143.34,143.32,24.42]
[1728369043396,0.8182337,143.34,143.33,1.39509692]
[1728369043693,0.8182337,143.34,143.32,24.42]
[1728369044102,0.8182337,143.34,143.33,1.39509932]
[1728369044407,0.8182337,143.34,143.33,1.52058932]
[1728369044605,0.8182337,143.34,143.33,25.29747332]
[1728369045905,0.8182337,143.34,143.33,32.27437332]
[1728369046222,0.8182337,143.34,143.33,32.39986332]
[1728369048427,0.8182337,143.34,143.33,81.004764]
[1728369052734,0.8182337,143.34,143.33,102.39963497]
[1728369054517,0.8182337,143.34,143.33,101.004764]
[1728369055402,0.8182337,143.34,143.33,102.39962398]
[1728369056204,0.8182337,143.34,143.33,101.004764]
[1728369060531,0.8182337,143.34,143.33,102.39962321]
[1728369060837,0.8182337,143.34,143.33,101.004764]
[1728369063532,0.8182337,143.34,143.33,51.004764]
[1728369063742,0.8182337,143.34,143.33,24.027864]
[1728369064037,0.8182337,143.34,143.33,1.39510513]
[1728369064340,0.8182337,143.34,143.33,8.37200513]
[1728369064919,0.8182337,143.34,143.33,8.37189114]
[1728369065136,0.8182337,143.34,143.33,32.27436295]
[1728369067238,0.8182337,143.34,143.33,32.39985295]
[1728369067456,0.8182337,143.34,143.33,31.004764]
[1728369068454,0.8182337,143.34,143.33,32.39975067]
[1728369071034,0.8182337,143.34,143.33,82.39975067]
[1728369071548,0.8182337,143.34,143.33,101.004764]
[1728369073249,0.8182337,143.34,143.33,51.004764]
[1728369078033,0.8182337,143.34,143.33,115.49431608]
[1728369079043,0.8182337,143.34,143.33,114.09936131]
[1728369080659,1.74289055,143.46,143.4,44.027864]
[1728369080969,1.74289055,143.46,143.4,43.902374]
[1728369081261,15.0155,143.47,143.41,50.0]
[1728369081466,6.9714,143.45,143.41,50.0]
[1728369081657,6.9716,143.44,143.4,43.902374]
[1728369081846,6.971,143.45,143.41,50.0]
[1728369082059,6.971,143.45,143.41,56.9728]
[1728369082660,15.0155,143.47,143.42,24.027864]
[1728369082863,15.0155,143.47,143.44,30.873774]
[1728369083060,15.0155,143.47,143.46,23.902374]
[1728369083259,15.0155,143.47,143.46,30.872874]
[1728369083454,0.8182337,143.49,143.46,80.872874]
[1728369083768,0.8182337,143.49,143.48,23.902374]
[1728369085169,0.8182337,143.49,143.48,74.027864]
[1728369085471,0.8182337,143.49,143.48,24.027864]
[1728369085685,0.8182337,143.49,143.48,23.902374]
[1728369085851,0.8182337,143.49,143.43,41.0418]
[1728369085852,0.8182337,143.49,143.43,50.0]
[1728369086069,6.9702,143.47,143.44,30.0]
[1728369086257,6.9696,143.48,143.45,1.39390659]
[1728369086758,6.9696,143.48,143.44,30.0]
[1728369087074,6.9696,143.48,143.45,1.39389444]
[1728369087448,6.9701,143.47,143.45,23.902374]
[1728369087644,6.9701,143.47,143.44,30.0]
[1728369088598,6.9701,143.47,143.43,30.0]
[1728369089070,6.9707,143.46,143.44,23.776884]
[1728369089275,6.971,143.45,143.42,23.776884]
[1728369089458,6.971,143.45,143.41,17.4322]
[1728369089775,6.971,143.45,143.41,24.405]
[1728369089981,6.971,143.45,143.42,1.39416123]
[1728369090371,6.1204,143.48,143.42,1.39416123]
[1728369090372,6.9707,143.46,143.42,1.39416123]
[1728369090573,6.9707,143.46,143.42,0.12549]
[1728369090765,6.9707,143.46,143.42,23.902374]
[1728369090963,15.8383,143.46,143.42,0.12549]
[1728369091276,6.9719,143.44,143.42,1.39420024]
[1728369091472,6.9711,143.45,143.4,30.750284]
[1728369091655,6.9711,143.45,143.41,31.3942558]
[1728369091863,22.809,143.46,143.42,23.776884]
[1728369092064,15.8383,143.46,143.4,17.4331]
[1728369092583,6.9716,143.44,143.41,1.39431041]
[1728369092966,15.8383,143.46,143.42,0.12549]
[1728369092967,22.8093,143.46,143.42,0.12549]
[1728369093167,6.9712,143.45,143.42,0.12549]
[1728369093396,6.9716,143.44,143.41,23.902374]
[1728369094179,22.8093,143.46,143.41,23.902374]
[1728369094384,22.8093,143.46,143.42,1.39415064]
[1728369094771,22.8093,143.46,143.41,30.874974]
[1728369095175,15.8383,143.46,143.41,30.874974]
[1728369095362,6.9711,143.45,143.41,23.902374]
[1728369096686,1.74273952,143.45,143.41,23.902374]
[1728369096864,6.9721,143.43,143.38,50.0]
[1728369097071,6.9721,143.43,143.38,56.9743]
[1728369097586,6.9726,143.42,143.39,1.39440082]
[1728369098672,6.9735,143.4,143.36,6.9753]
[1728369098867,6.9731,143.41,143.36,6.9753]
[1728369099366,6.9731,143.41,143.37,30.0]
[1728369100001,6.9741,143.39,143.37,30.0]
[1728369100289,16.4411,143.38,143.37,30.0]
[1728369101169,16.4411,143.38,143.37,1.39478187]
[1728369101384,22.5388,143.42,143.37,8.36968187]
[1728369101574,15.5662,143.42,143.38,23.776884]
[1728369101890,6.973,143.41,143.38,23.776884]
[1728369102589,6.973,143.41,143.39,1.39461191]
[1728369103113,6.973,143.41,143.38,23.776884]
[1728369103399,6.973,143.41,143.37,23.776884]
[1728369105491,6.973,143.41,143.38,1.39462447]
[1728369106302,6.973,143.41,143.37,23.776884]
[1728369106589,6.973,143.41,143.37,25.17149891]
[1728369106797,6.973,143.41,143.37,23.776884]
[1728369108275,6.973,143.41,143.38,1.39461517]
[1728369109298,15.5662,143.42,143.38,1.39461517]
[1728369109499,22.5388,143.42,143.38,1.39461517]
[1728369110082,22.5388,143.42,143.38,0.12549]
[1728369110599,15.5662,143.42,143.39,6.9738]
[1728369110776,15.5662,143.42,143.4,23.776884]
[1728369115099,15.5662,143.42,143.38,0.12549]
[1728369115321,22.5388,143.42,143.38,30.876674]
[1728369115514,15.5662,143.42,143.38,30.876674]
[1728369118117,15.5662,143.42,143.38,23.902374]
[1728369118316,6.973,143.41,143.37,24.4111]
[1728369118528,6.973,143.41,143.37,17.4363]
[1728369119198,22.5388,143.42,143.38,1.39464722]
[1728369119397,22.5388,143.42,143.37,17.4363]
[1728369119398,15.5662,143.42,143.37,17.4363]
[1728369119607,17.30963089,143.42,143.38,1.39474471]
[1728369119815,6.973,143.41,143.37,6.9749]
[1728369120020,22.5388,143.42,143.38,8.36901297]
[1728369120222,15.5662,143.42,143.39,6.9739]
[1728369120620,22.5387,143.42,143.38,24.4101]
[1728369121216,22.5387,143.42,143.38,17.4357]
[1728369121522,6.9731,143.41,143.37,0.12549]
[1728369121712,6.9731,143.41,143.37,6.9748]
[1728369121914,6.9731,143.41,143.37,8.36948446]
[1728369122537,22.5388,143.42,143.38,30.876374]
[1728369122710,22.5388,143.42,143.39,1.39450915]
[1728369122910,15.5662,143.42,143.39,1.39450915]
[1728369123531,15.5662,143.42,143.38,30.876374]
[1728369124616,15.5662,143.42,143.38,32.27087568]
[1728369124820,15.5662,143.42,143.4,0.12549]
[1728369125022,15.5662,143.42,143.4,25.29681373]
[1728369125520,15.5662,143.42,143.41,6.973]
[1728369127330,15.5662,143.42,143.4,30.875674]
[1728369128653,15.5662,143.42,143.41,30.875374]
[1728369128847,23.1944,143.46,143.42,6.9724]
[1728369129019,23.1944,143.46,143.43,1.39421568]
[1728369130223,16.2237,143.46,143.43,23.902374]
[1728369130546,17.95434177,143.5,143.43,23.902374]
[1728369130724,7.7873337,143.49,143.45,6.971]
[1728369130918,7.7873337,143.49,143.46,1.39389538]
[1728369131537,0.8182337,143.49,143.46,1.39389538]
[1728369131912,0.8182337,143.49,143.46,23.776884]
[1728369132517,0.8182337,143.49,143.47,1.39381214]
[1728369134761,0.8182337,143.49,143.48,23.902374]
[1728369134991,0.8182337,143.49,143.48,30.871974]
[1728369136551,0.8182337,143.49,143.48,30.997464]
[1728369138055,0.8182337,143.49,143.48,80.997464]
[1728369140021,0.8182337,143.49,143.48,82.39084945]
[1728369140355,0.8182337,143.49,143.48,80.997464]
[1728369140654,0.8182337,143.49,143.48,82.39084633]
[1728369141431,0.8182337,143.49,143.48,80.997464]
[1728369145064,0.8182337,143.49,143.48,30.997464]
[1728369145936,0.8182337,143.49,143.48,80.997464]
[1728369146164,0.8182337,143.49,143.48,30.997464]
[1728369147562,0.8182337,143.49,143.48,23.902374]
[1728369148134,0.8182337,143.49,143.47,17.4247]
[1728369148652,0.8182337,143.49,143.48,1.3937369]
[1728369149040,0.8182337,143.49,143.48,8.3633369]
[1728369149760,0.8182337,143.49,143.48,8.4888269]
[1728369149957,0.8182337,143.49,143.48,32.3912009]
[1728369150171,0.8182337,143.49,143.48,30.997464]
[1728369152267,0.8182337,143.49,143.48,80.997464]
[1728369159367,0.8182337,143.49,143.48,95.48543159]
[1728369159588,0.8182337,143.49,143.48,115.48543159]
[1728369160452,0.8182337,143.49,143.48,125.62533325]
[1728369160654,0.8182337,143.49,143.48,124.23196297]
[1728369161263,0.8182337,143.49,143.48,114.09206131]
[1728369161576,0.8182337,143.49,143.48,115.48511376]
[1728369161784,0.8182337,143.49,143.48,114.09206131]
[1728369161964,0.8182337,143.49,143.48,115.4851231]
[1728369162150,3.37e-05,143.49,143.48,115.4851231]
[1728369162356,3.37e-05,143.49,143.48,114.09206131]
[1728369162859,3.37e-05,143.49,143.48,115.48506607]
[1728369163174,3.37e-05,143.49,143.48,124.23196297]
[1728369163371,11.1838337,143.57,143.54,23.776884]
[1728369163770,11.1838337,143.57,143.54,6.9665]
[1728369164288,11.1838337,143.57,143.55,1.39297159]
[1728369164472,11.1838337,143.57,143.55,8.35907159]
[1728369164781,11.1838337,143.57,143.56,23.776884]
[1728369165166,11.1838337,143.57,143.55,23.776884]
[1728369165371,11.1838337,143.57,143.56,1.39297546]
[1728369166782,11.1838337,143.57,143.55,23.776884]
[1728369171180,11.1562134,143.57,143.55,23.776884]
[1728369172886,11.1562134,143.57,143.54,17.4162]
[1728369173071,11.1562134,143.57,143.54,24.3828]
[1728369173273,11.1562134,143.57,143.55,1.39303951]
[1728369174970,13.3168,143.6,143.56,30.742184]
[1728369175268,6.3529,143.6,143.57,8.35791219]
[1728369175790,22.7257,143.61,143.57,8.35791219]
[1728369175971,15.7623,143.61,143.58,6.9646]
[1728369176171,15.7623,143.61,143.59,1.39266168]
[1728369176373,15.7623,143.61,143.59,8.35686168]
[1728369176792,15.7623,143.61,143.6,6.9637]
[1728369176969,15.7623,143.61,143.59,8.35676168]
[1728369178988,15.7623,143.61,143.6,30.740584]
[1728369179190,0.8182337,143.63,143.6,41.311174]
[1728369179490,0.8182337,143.63,143.62,6.9628]
[1728369180218,0.8182337,143.63,143.62,30.865174]
[1728369180426,0.8182337,143.63,143.62,30.990664]
[1728369180601,0.8182337,143.63,143.62,44.08526131]
[1728369180996,0.8182337,143.63,143.62,45.47728879]
[1728369181201,0.8182337,143.63,143.62,65.47728879]
[1728369181413,0.8182337,143.63,143.62,64.08526131]
[1728369182200,0.8182337,143.63,143.62,50.990664]
[1728369182403,0.8182337,143.63,143.62,30.990664]
[1728369183323,0.8182337,143.63,143.62,7.08829]
[1728369183523,0.8182337,143.63,143.62,8.48045117]
[1728369184021,0.8182337,143.63,143.62,7.08829]
[1728369184609,0.8182337,143.63,143.62,30.990664]
[1728369185121,18.3652337,143.69,143.63,74.027864]
[1728369185432,6.9576,143.73,143.69,30.861674]
[1728369186318,6.5609,143.75,143.66,67.4016]
[1728369186495,6.9581,143.72,143.68,23.776884]
[1728369187630,1.73957288,143.71,143.66,67.4016]
[1728369187816,6.9589,143.7,143.66,17.4016]
[1728369188752,6.9589,143.7,143.66,24.3623]
[1728369189513,6.9589,143.7,143.67,1.39180303]
[1728369189907,6.9589,143.7,143.66,24.3623]
[1728369190912,6.9589,143.7,143.67,1.39180478]
[1728369191107,6.9589,143.7,143.66,17.4016]
[1728369191313,6.9594,143.69,143.65,23.902374]
[1728369191526,6.9593,143.7,143.65,30.863374]
[1728369191922,6.9593,143.7,143.66,1.39186345]
[1728369192227,6.9593,143.7,143.65,30.863374]
[1728369192735,15.0073,143.71,143.65,30.863374]
[1728369192916,6.9606,143.67,143.64,23.776884]
[1728369193323,6.9613,143.65,143.6,102.2253]
[1728369193818,1.74025812,143.69,143.6,102.2253]
[1728369194021,6.9613,143.65,143.61,6.9632]
[1728369194531,6.9613,143.65,143.58,6.273]
[1728369194532,16.4497,143.65,143.58,50.0]
[1728369194829,6.9623,143.63,143.58,6.9646]
[1728369195550,16.4497,143.65,143.59,8.35655698]
[1728369195751,6.9619,143.64,143.6,6.9637]
[1728369196050,6.9619,143.64,143.61,1.39237596]
[1728369196548,17.75067028,143.72,143.65,0.12549]
[1728369196750,6.959,143.7,143.65,6.9609]
[1728369198835,6.9596,143.69,143.64,30.864174]
[1728369199732,6.9596,143.69,143.65,1.3919814]
[1728369199945,6.9596,143.69,143.64,30.864174]
[1728369205276,1.73989288,143.71,143.63,17.405]
[1728369205572,6.961,143.66,143.6,56.5667]
[1728369205762,21.73989288,143.71,143.6,56.5667]
[1728369205763,6.9615,143.65,143.61,6.9631]
[1728369205952,1.74033927,143.69,143.6,17.4091]
[1728369206151,1.74033927,143.69,143.58,56.9647]
[1728369206152,6.9625,143.63,143.58,56.9647]
[1728369206575,6.9625,143.63,143.58,50.0]
[1728369206885,6.9625,143.63,143.59,6.9641]
[1728369207468,6.9619,143.64,143.6,6.9636]
[1728369207659,6.9619,143.64,143.6,8.3560947]
[1728369208049,6.9619,143.64,143.6,6.9636]
[1728369210366,6.9625,143.63,143.59,17.53559]
[1728369210970,6.9625,143.63,143.6,1.39249527]
[1728369211383,1.7406215,143.67,143.63,6.9622]
[1728369211677,1.74024518,143.67,143.64,1.39219615]
[1728369211847,1.74024518,143.67,143.63,17.4051]
[1728369212050,6.9609,143.66,143.63,18.79733134]
[1728369212364,8.70074518,143.67,143.63,18.79733134]
[1728369212565,6.9609,143.66,143.63,18.79733134]
[1728369212871,8.70074518,143.67,143.63,18.79733134]
[1728369213269,6.9605,143.67,143.63,18.79733134]
[1728369214063,28.8883,143.68,143.63,18.79733134]
[1728369214375,15.8299,143.68,143.65,6.9613]
[1728369214572,6.959,143.7,143.66,6.9607]
[1728369214764,6.959,143.7,143.67,1.39187599]
[1728369216278,1.73984499,143.71,143.65,17.4029]
[1728369216456,6.9595,143.69,143.65,24.3641]
[1728369216780,1.73984499,143.71,143.66,1.39191504]
[1728369216961,23.5386,143.72,143.68,6.9598]
[1728369217159,16.5806,143.72,143.67,0.12549]
[1728369217377,6.9585,143.71,143.67,8.35203236]
[1728369218181,6.9585,143.71,143.67,6.9603]
[1728369219468,6.9585,143.71,143.67,8.35208723]
[1728369220076,6.9585,143.71,143.67,6.9603]
[1728369220587,6.9585,143.71,143.66,30.737584]
[1728369220779,6.9585,143.71,143.68,30.0]
[1728369220974,6.9585,143.71,143.66,30.737584]
[1728369221170,6.9594,143.69,143.65,24.48969]
[1728369221576,6.9594,143.69,143.65,17.52839]
[1728369221771,6.9594,143.69,143.66,30.0]
[1728369222468,6.959,143.7,143.66,36.9607]
[1728369223170,6.959,143.7,143.67,1.39180182]
[1728369223485,6.959,143.7,143.68,30.0]
[1728369223684,16.5806,143.72,143.69,1.39178897]
[1728369224376,23.5385,143.72,143.68,36.9594]
[1728369224771,23.5385,143.72,143.69,1.39165055]
[1728369225082,23.5385,143.72,143.69,31.3916501]
[1728369225285,16.5806,143.72,143.69,38.3509501]
[1728369227095,6.9575,143.73,143.69,30.0]
[1728369227879,6.9575,143.73,143.7,1.39159484]
[1728369228078,6.9575,143.73,143.7,31.39159484]
[1728369228998,6.9575,143.73,143.7,30.0]
[1728369229496,16.61,143.75,143.71,18.78736775]
[1728369229796,6.9557,143.77,143.72,23.776884]
[1728369230004,6.9557,143.77,143.73,1.39118728]
[1728369230697,6.9557,143.77,143.73,31.39118728]
[1728369231003,6.9557,143.77,143.73,38.34848728]